bitfinex-derivatives/quotes_ETHF0:USTF0_20250112
["timestamp","ask_amount","ask_price","bid_price","bid_amount"]
[1736702376419,1.199,3287.1,3286.7,0.5622]
[1736702376619,1.199,3287.1,3287.0,0.21305]
[1736702377319,1.199,3287.1,3286.9,0.21306]
[1736702378814,1.199,3287.1,3286.7,0.5622]
[1736702379323,1.199,3287.1,3286.8,0.21306]
[1736702380515,1.299,3287.1,3286.8,0.21306]
[1736702382120,1.299,3287.1,3286.7,0.5622]
[1736702382325,1.299,3287.1,3286.7,0.77527]
[1736702385130,1.299,3287.1,3286.7,0.5622]
[1736702385521,1.299,3287.1,3287.0,0.21305]
[1736702387923,0.1,3287.1,3287.0,0.21305]
[1736702390447,0.1,3287.1,3286.7,0.5622]
[1736702390448,0.1,3287.1,3286.8,0.21306]
[1736702390632,0.1,3287.1,3286.9,0.21306]
[1736702390828,0.1,3287.1,3286.7,0.5622]
[1736702391028,0.1,3287.1,3286.8,0.21306]
[1736702394334,0.1,3287.1,3286.7,5.4952]
[1736702394335,0.21306,3287.0,3286.7,5.4952]
[1736702394530,1.34206,3287.0,3286.7,5.4952]
[1736702394740,0.5582,3286.9,3286.7,5.4952]
[1736702395438,0.77126,3286.9,3286.7,5.4952]
[1736702396138,0.5582,3286.9,3286.7,5.4952]
[1736702398044,0.31305,3287.1,3286.7,5.70827]
[1736702398339,0.31305,3287.1,3286.7,0.77527]
[1736702399738,0.1,3287.1,3286.7,0.5622]
[1736702399937,0.21306,3287.0,3286.7,0.5622]
[1736702400844,2.44971061,3287.1,3286.7,0.5622]
[1736702401143,0.21307,3286.7,3286.6,3.2078]
[1736702403047,2.44971061,3287.1,3286.6,3.2078]
[1736702403244,0.21307,3286.8,3286.6,3.2078]
[1736702403646,0.539,3286.7,3286.6,3.2078]
[1736702404145,0.75207,3286.7,3286.4,0.73509]
[1736702405147,0.539,3286.7,3286.4,0.522]
[1736702405444,0.539,3286.7,3286.5,0.21308]
[1736702406446,0.539,3286.7,3286.4,0.522]
[1736702406649,0.1,3287.1,3287.0,0.21305]
[1736702407052,0.1,3287.1,3287.0,3.42085]
[1736702407348,0.1,3287.1,3286.9,0.21305]
[1736702407541,0.1,3287.1,3287.0,0.5524]
[1736702408648,0.1,3287.1,3287.0,0.76545]
[1736702412256,0.1,3287.1,3287.0,0.5524]
[1736702412951,0.1,3287.1,3287.0,0.76545]
[1736702414854,3.44995415,3287.9,3287.3,0.21303]
[1736702415055,3.2078,3287.9,3287.4,0.5478]
[1736702415254,0.21301,3287.7,3287.4,0.5478]
[1736702415855,0.21302,3287.6,3287.4,0.5478]
[1736702416055,0.74222,3287.6,3287.2,3.42084]
[1736702416349,0.75062,3287.5,3287.2,3.2078]
[1736702416756,0.5594,3287.4,3287.2,3.2078]
[1736702416958,0.77243,3287.4,3287.2,3.2078]
[1736702417255,0.5594,3287.4,3287.2,3.2078]
[1736702417457,0.5594,3287.4,3287.1,0.76085]
[1736702417655,0.77243,3287.4,3287.1,0.76085]
[1736702417852,0.5594,3287.4,3287.1,0.76085]
[1736702418159,0.77243,3287.4,3287.2,0.5466]
[1736702418762,0.5594,3287.4,3287.2,0.5466]
[1736702421754,0.77243,3287.4,3287.2,0.5466]
[1736702422259,0.5594,3287.4,3287.2,0.5466]
[1736702422754,0.77243,3287.4,3287.2,0.5466]
[1736702424658,0.77243,3287.4,3287.0,0.21305]
[1736702424659,0.21304,3287.3,3287.0,0.21305]
[1736702424859,0.21304,3287.3,3287.0,1.30985]
[1736702425058,0.21304,3287.3,3287.1,0.5232]
[1736702428361,0.21304,3287.2,3287.1,0.5232]
[1736702430365,1.32490597,3287.3,3287.1,0.73625]
[1736702430565,0.21304,3287.3,3287.1,0.73625]
[1736702430975,0.21304,3287.3,3287.1,0.5232]
[1736702431268,0.21304,3287.3,3287.1,0.73625]
[1736702431459,0.21304,3287.3,3287.1,0.5232]
[1736702431658,0.21304,3287.3,3287.1,0.73625]
[1736702431868,0.21304,3287.3,3287.1,0.5232]
[1736702433563,0.21303,3287.3,3287.1,0.5232]
[1736702435467,0.5594,3287.4,3287.1,0.5232]
[1736702435762,0.21303,3287.3,3287.1,0.5232]
[1736702435967,1.32490597,3287.3,3287.1,0.5232]
[1736702438169,0.21304,3287.2,3287.1,0.5232]
[1736702438366,1.32490597,3287.3,3287.1,0.73625]
[1736702441473,0.21304,3287.3,3287.1,0.73625]
[1736702443281,0.5594,3287.4,3287.1,1.63506597]
[1736702443469,3.2078,3287.9,3287.3,1.11186597]
[1736702443770,0.5301,3288.0,3287.7,1.11186597]
[1736702443971,0.5301,3288.0,3287.8,0.7728]
[1736702444970,0.5301,3288.0,3287.8,0.5598]
[1736702445177,1.64196597,3288.0,3287.8,0.5598]
[1736702447381,1.64196597,3288.0,3287.8,0.7728]
[1736702447783,1.64196597,3288.0,3287.8,0.5598]
[1736702451483,3.2078,3288.2,3287.8,0.5598]
[1736702451484,3.2078,3288.2,3287.9,1.11186597]
[1736702451683,3.2078,3288.2,3288.1,1.11186597]
[1736702452577,3.2078,3288.2,3287.8,3.7676]
[1736702452884,1.66366597,3288.1,3287.8,3.9806]
[1736702453084,1.0639,3288.0,3287.8,3.9806]
[1736702455085,0.5518,3288.1,3287.8,4.87946597]
[1736702455284,3.2078,3288.2,3288.1,0.21298]
[1736702455980,3.2078,3288.2,3288.1,0.78358]
[1736702456780,3.2078,3288.2,3288.1,1.35498]
[1736702461778,0.5314,3288.5,3288.4,0.21296]
[1736702461985,0.5314,3288.5,3288.4,1.32482597]
[1736702462190,0.5314,3288.5,3288.4,1.11186597]
[1736702462392,0.5314,3288.5,3288.4,1.32482597]
[1736702463095,0.5314,3288.5,3288.4,1.11186597]
[1736702466994,0.74436,3288.5,3288.2,6.56356597]
[1736702467291,0.5314,3288.5,3288.2,1.63056597]
[1736702467992,0.5314,3288.5,3288.2,1.84353597]
[1736702468387,0.74436,3288.5,3288.2,1.63056597]
[1736702469191,0.5314,3288.5,3288.2,1.84353597]
[1736702470292,0.5314,3288.5,3288.4,1.11186597]
[1736702480105,0.74436,3288.5,3288.4,1.11186597]
[1736702481707,0.74436,3288.5,3288.4,0.49605482]
[1736702484211,0.5314,3288.5,3288.4,0.49605482]
[1736702485411,0.5314,3288.5,3288.4,0.23307121]
[1736702495310,4.54384,3288.7,3288.4,0.44603121]
[1736702495512,0.5491,3289.0,3288.6,1.11186597]
[1736702495716,0.5491,3289.0,3288.9,1.11186597]
[1736702495917,3.2078,3289.7,3288.9,1.11186597]
[1736702496118,0.5434,3289.4,3289.3,1.11186597]
[1736702496512,3.2078,3289.7,3289.3,1.11186597]
[1736702496513,3.2078,3289.7,3289.5,0.21289]
[1736702496714,0.21287,3289.9,3289.6,0.5473]
[1736702496914,2.20596597,3290.1,3289.6,1.65916597]
[1736702497320,1.11186597,3289.9,3289.6,1.65916597]
[1736702497515,0.21287,3289.8,3289.6,1.65916597]
[1736702497815,0.5434,3289.7,3289.6,1.65916597]
[1736702501816,1.1136,3289.7,3289.6,1.65916597]
[1736702506121,4.86486597,3290.0,3289.6,1.87204597]
[1736702506317,5.61232597,3290.0,3289.6,1.87204597]
[1736702506522,4.2876,3290.0,3289.6,1.65916597]
[1736702506722,4.2876,3290.0,3289.8,1.11186597]
[1736702506922,3.7424,3290.0,3289.8,1.11186597]
[1736702507421,3.7424,3290.0,3289.8,2.17806597]
[1736702509333,3.7424,3290.0,3289.8,2.39093597]
[1736702509525,3.7424,3290.0,3289.8,2.17806597]
[1736702512529,3.95527,3290.0,3289.8,2.17806597]
[1736702512727,3.7424,3290.0,3289.8,2.17806597]
[1736702513119,3.95527,3290.0,3289.8,2.17806597]
[1736702513433,4.49637,3290.0,3289.8,1.65696597]
[1736702514425,4.49637,3290.0,3289.8,1.11186597]
[1736702514620,0.21288,3289.9,3289.8,1.11186597]
[1736702515932,0.21288,3289.9,3289.6,5.4803]
[1736702515933,1.11186597,3289.9,3289.6,5.4803]
[1736702516226,0.21289,3289.7,3289.6,4.933]
[1736702517129,1.32475597,3289.7,3289.6,4.933]
[1736702518130,1.11186597,3289.7,3289.2,4.31966597]
[1736702518432,0.7629,3289.6,3289.2,4.31966597]
[1736702518630,1.3122,3289.6,3289.2,4.31966597]
[1736702518831,0.21291,3289.5,3289.4,1.11186597]
[1736702521034,0.73751,3289.5,3289.4,1.11186597]
[1736702524134,0.21293,3289.2,3289.1,1.68516597]
[1736702524435,1.63646597,3289.5,3289.0,0.5726]
[1736702524436,0.21293,3289.1,3289.0,0.5726]
[1736702524633,0.78503,3289.1,3289.0,0.5726]
[1736702525630,0.21294,3289.0,3288.9,0.5544]
[1736702525835,0.21296,3288.7,3288.6,0.4625313]
[1736702528935,4.31966597,3288.7,3288.3,1.11186597]
[1736702529141,1.11186597,3288.5,3288.1,2.93635597]
[1736702531640,1.32483597,3288.5,3288.1,2.93635597]
[1736702534042,0.21299,3288.3,3288.1,1.11186597]
[1736702535749,0.21299,3288.3,3288.1,1.65456597]
[1736702536249,0.21298,3288.4,3288.1,1.65456597]
[1736702536745,1.32483597,3288.5,3288.3,1.11186597]
[1736702536946,0.5371,3288.6,3288.3,1.11186597]
[1736702537145,0.21298,3288.4,3288.3,1.11186597]
[1736702539246,0.5371,3288.6,3288.3,1.11186597]
[1736702539549,0.21298,3288.5,3288.3,1.11186597]
[1736702539752,0.5625,3288.4,3288.3,1.11186597]
[1736702540544,1.1282,3288.4,3288.3,1.11186597]
[1736702541850,0.21299,3288.2,3288.1,0.5427]
[1736702542053,4.31966597,3288.2,3287.6,2.17796597]
[1736702542252,1.32487597,3288.0,3287.8,0.5586]
[1736702544154,1.42487597,3288.0,3287.8,0.5586]
[1736702546052,1.42487597,3288.0,3287.6,2.39099597]
[1736702546252,1.42487597,3288.0,3287.7,0.5133]
[1736702546853,1.42487597,3288.0,3287.7,0.72632]
[1736702548657,1.42487597,3288.0,3287.7,0.5133]
[1736702548859,1.42487597,3288.0,3287.8,0.21302]
[1736702549359,1.21186597,3288.0,3287.7,0.5133]
[1736702549560,1.42487597,3288.0,3287.7,0.72632]
[1736702553863,1.42487597,3288.0,3287.7,0.5133]
[1736702554163,1.42487597,3288.0,3287.8,0.21301]
[1736702559665,1.42487597,3288.0,3287.7,0.5133]
[1736702559868,1.42487597,3288.0,3287.8,0.21301]
[1736702560869,1.21186597,3288.0,3287.8,0.21301]
[1736702566472,1.21186597,3288.0,3287.7,0.72632]
[1736702566771,1.42487597,3288.0,3287.7,0.72632]
[1736702566970,1.0519,3287.9,3287.7,0.5133]
[1736702567472,0.21303,3287.6,3286.9,3.2078]
[1736702567670,4.53270597,3287.5,3287.2,5.61904423]
[1736702567975,1.0519,3287.4,3287.2,5.61904423]
[1736702568274,1.0519,3287.4,3287.3,0.21305]
[1736702571970,3.2078,3287.5,3287.4,0.21304]
[1736702572168,3.2078,3287.5,3287.4,1.32490597]
[1736702572966,0.1,3288.0,3287.4,1.11186597]
[1736702573170,0.1,3288.0,3287.9,0.21301]
[1736702573577,0.1,3288.0,3287.9,1.77151]
[1736702574471,0.1,3288.0,3287.9,1.5585]
[1736702574672,0.1,3288.0,3287.9,1.77151]
[1736702576174,0.1,3288.0,3287.9,1.5585]
[1736702580787,1.21186597,3288.0,3287.9,1.5585]
[1736702581084,1.21186597,3288.0,3287.6,2.33629597]
[1736702581281,0.5255,3287.9,3287.7,0.4992]
[1736702581687,0.21302,3287.8,3287.5,4.933]
[1736702582280,0.21302,3287.8,3287.6,1.11186597]
[1736702582684,0.73851,3287.9,3287.7,0.4992]
[1736702582886,0.1,3288.0,3287.8,1.11186597]
[1736702583086,0.1,3288.0,3287.8,2.33377597]
[1736702583287,0.1,3288.0,3287.8,2.12076597]
[1736702585190,3.2078,3287.9,3287.8,2.12076597]
[1736702590398,3.2078,3287.9,3287.8,2.33377597]
[1736702591001,3.2078,3287.9,3287.8,2.12076597]
[1736702593498,3.7308,3287.9,3287.8,2.12076597]
[1736702595001,3.7308,3287.9,3287.8,1.62636597]
[1736702595198,4.2183,3287.9,3287.8,1.11186597]
[1736702596409,3.94381,3287.9,3287.8,1.11186597]
[1736702597207,3.94381,3287.9,3287.6,1.11186597]
[1736702597410,0.9916,3287.8,3287.6,1.11186597]
[1736702597599,1.20462,3287.8,3287.6,1.11186597]
[1736702597801,0.21303,3287.6,3287.4,8.3983]
[1736702598103,0.9916,3287.8,3287.4,8.3983]
[1736702598311,0.21304,3287.5,3287.4,7.886]
[1736702598500,0.21304,3287.5,3287.4,8.99786597]
[1736702599805,0.21304,3287.5,3287.1,3.2078]
[1736702599806,0.21306,3287.2,3287.1,3.2078]
[1736702600109,0.5324,3287.4,3287.1,4.31966597]
[1736702600304,0.74544,3287.4,3287.3,1.11186597]
[1736702600902,0.5324,3287.4,3287.3,1.11186597]
[1736702601607,0.74544,3287.4,3287.3,1.11186597]
[1736702602003,0.5324,3287.4,3287.3,1.11186597]
[1736702603310,3.95324,3287.4,3287.3,1.11186597]
[1736702603513,3.7402,3287.4,3287.3,1.11186597]
[1736702606209,3.2078,3287.4,3287.3,1.32491597]
[1736702613813,3.3078,3287.4,3287.3,1.32491597]
[1736702615419,3.3078,3287.4,3287.3,1.11186597]
[1736702615918,3.3078,3287.4,3287.3,1.65246597]
[1736702617425,3.3078,3287.4,3287.3,1.11186597]
[1736702617721,3.3078,3287.4,3287.1,7.886]
[1736702617928,1.5667,3287.3,3287.1,8.99786597]
[1736702618118,1.5667,3287.3,3287.1,9.21091597]
[1736702619725,1.5667,3287.3,3287.1,8.99786597]
[1736702619726,1.77974,3287.3,3287.1,8.99786597]
[1736702622321,1.77975,3287.3,3287.1,8.99786597]
[1736702622924,1.77975,3287.3,3287.1,4.06486597]
[1736702623222,1.5667,3287.3,3287.1,4.06486597]
[1736702623422,1.5667,3287.3,3287.1,4.27792597]
[1736702623623,1.5667,3287.3,3287.2,0.5139]
[1736702623825,1.77975,3287.3,3287.2,0.5139]
[1736702624519,1.5667,3287.3,3287.2,0.5139]
[1736702625027,1.77975,3287.3,3287.2,0.5139]
[1736702635838,0.21305,3287.2,3287.1,4.06486597]
[1736702644741,0.21305,3287.2,3287.1,2.953]
[1736702646939,2.67856597,3287.3,3286.8,3.2078]
[1736702647138,0.21307,3286.9,3286.8,3.2078]
[1736702648542,0.21307,3286.9,3286.8,3.7041]
[1736702649540,2.7647,3287.3,3286.8,3.7041]
[1736702649840,0.21306,3287.1,3286.9,0.5075]
[1736702650032,0.21306,3287.1,3286.9,1.0025]
[1736702650745,0.21306,3287.1,3286.9,1.21557]
[1736702650946,0.21306,3287.1,3287.0,1.11186597]
[1736702652741,0.21306,3287.2,3287.0,1.11186597]
[1736702653349,0.21306,3287.1,3287.0,1.11186597]
[1736702662252,0.21307,3286.9,3286.8,0.4963]
[1736702662463,0.21309,3286.7,3286.6,1.61686597]
[1736702662645,0.21309,3286.7,3286.6,0.505]
[1736702662851,0.21311,3286.4,3286.3,1.11186597]
[1736702674961,0.5138,3286.8,3286.3,1.11186597]
[1736702675160,3.7205,3287.0,3286.7,1.11186597]
[1736702675463,3.93357,3287.0,3286.9,1.32493597]
[1736702675658,0.72577,3287.0,3286.9,1.32493597]
[1736702675865,0.72577,3287.0,3286.9,1.82643597]
[1736702676265,0.72577,3287.0,3286.9,1.61336597]
[1736702677963,0.5127,3287.0,3286.9,1.61336597]
[1736702684161,0.72577,3287.0,3286.9,1.61336597]
[1736702684363,0.21307,3286.9,3286.8,4.933]
[1736702684570,1.23817,3286.9,3286.8,6.04486597]
[1736702688873,1.23817,3286.9,3286.8,1.11186597]
[1736702692067,1.23817,3286.9,3286.8,1.61396597]
[1736702696378,1.23817,3286.9,3286.8,1.82704597]
[1736702698779,1.23817,3286.9,3286.8,1.61396597]
[1736702700874,1.23817,3286.9,3286.8,1.11186597]
[1736702702986,1.0251,3286.9,3286.8,1.32493597]
[1736702703279,4.31966597,3287.3,3286.8,1.32493597]
[1736702703280,3.42084,3287.3,3287.1,0.21304]
[1736702703475,3.93404,3287.3,3287.2,1.11186597]
[1736702704473,3.721,3287.3,3287.2,1.11186597]
[1736702712792,3.721,3287.3,3287.2,1.32490597]
[1736702714291,0.5132,3287.3,3287.2,1.11186597]
[1736702714491,1.62506597,3287.3,3286.9,1.57184793]
[1736702714696,0.21305,3287.0,3286.9,0.00094793]
[1736702715098,1.23305,3287.0,3286.9,0.00094793]
[1736702720505,1.33305,3287.0,3286.9,0.00094793]
[1736702720911,3.42886597,3287.0,3285.7,7.94529203]
[1736702721109,0.2131,3286.2,3286.1,1.11186597]
[1736702721608,1.2328,3286.3,3286.1,1.11186597]
[1736702722206,1.2328,3286.3,3286.2,0.5162]
[1736702722803,1.0197,3286.3,3286.2,0.5162]
[1736702723204,1.2328,3286.3,3286.2,0.5162]
[1736702723405,1.0197,3286.3,3286.2,0.5162]
[1736702724904,1.2328,3286.3,3286.2,0.5162]
[1736702728821,1.3328,3286.3,3286.2,0.5162]
[1736702729113,0.8219,3286.3,3286.2,0.5162]
[1736702729303,0.1,3286.3,3286.2,0.7293]
[1736702729505,0.09905207,3286.3,3286.2,1.84116597]
[1736702730508,0.09905207,3286.3,3286.2,6.84116597]
[1736702730708,0.21305,3287.0,3286.9,1.11186597]
[1736702730909,0.21305,3287.1,3286.9,1.32492597]
[1736702731108,0.21305,3287.1,3287.0,1.11186597]
[1736702731309,0.21305,3287.1,3287.0,2.34862348]
[1736702731605,0.21304,3287.2,3287.0,2.34862348]
[1736702731813,0.21304,3287.2,3287.1,0.5152]
[1736702732113,0.21304,3287.2,3287.1,1.0083]
[1736702732416,0.21303,3287.4,3287.1,1.22134]
[1736702732613,0.4896,3287.7,3287.3,2.34862348]
[1736702732812,0.21302,3287.5,3287.3,2.34862348]
[1736702734813,3.6974,3287.7,3287.2,0.5346]
[1736702735018,0.21302,3287.5,3287.2,0.5346]
[1736702735212,3.6974,3287.7,3287.2,0.5346]
[1736702735412,0.21302,3287.5,3287.2,0.5346]
[1736702739524,0.21303,3287.4,3287.2,0.5346]
[1736702739719,0.21302,3287.5,3287.2,0.5346]
[1736702741428,0.4896,3287.7,3287.2,0.5346]
[1736702741724,0.21303,3287.4,3287.2,0.5346]
[1736702743830,0.21303,3287.3,3287.2,0.5346]
[1736702744032,0.5379,3287.3,3287.2,0.5346]
[1736702744635,0.75093,3287.3,3287.2,0.5346]
[1736702749533,0.75093,3287.3,3287.1,6.30992348]
[1736702749934,0.5379,3287.3,3287.1,2.953]
[1736702750135,0.75374,3287.2,3287.1,2.953]
[1736702751434,0.75374,3287.2,3287.1,4.06488933]
[1736702754743,0.75374,3287.2,3287.1,1.11188933]
[1736702756846,0.5407,3287.2,3286.9,1.11188933]
[1736702757045,0.5291,3287.1,3286.9,1.11188933]
[1736702757446,0.21305,3287.0,3286.9,1.11188933]
[1736702760655,0.21305,3287.0,3286.9,4.06488933]
[1736702761154,0.21305,3287.0,3286.9,2.953]
[1736702764053,3.42085,3287.0,3286.9,2.953]
[1736702766755,0.21307,3286.8,3286.7,1.11188933]
[1736702767956,0.21307,3286.7,3286.6,2.953]
[1736702768159,1.83035933,3286.7,3286.6,2.953]
[1736702771652,0.21309,3286.4,3286.3,1.0125]
[1736702772657,1.61298933,3286.5,3286.2,5.41752313]
[1736702772852,0.2131,3286.3,3286.2,5.92142313]
[1736702775764,1.61298933,3286.5,3286.2,5.92142313]
[1736702776061,0.21309,3286.4,3286.2,5.92142313]
[1736702776256,1.61298933,3286.5,3286.2,5.92142313]
[1736702776657,0.2131,3286.3,3286.2,5.92142313]
[1736702776855,0.2131,3286.4,3286.2,5.92142313]
[1736702777058,1.61298933,3286.5,3286.2,5.92142313]
[1736702777255,0.21309,3286.4,3286.2,5.92142313]
[1736702777762,0.21309,3286.4,3286.3,1.11188933]
[1736702777963,0.2131,3286.3,3286.2,5.92142313]
[1736702778163,0.2131,3286.4,3286.2,7.03331246]
[1736702778464,0.2131,3286.3,3286.2,7.03331246]
[1736702778656,0.2131,3286.4,3286.2,7.03331246]
[1736702779457,0.2131,3286.3,3286.2,7.03331246]
[1736702779659,0.21309,3286.4,3286.2,7.03331246]
[1736702780359,0.5011,3286.5,3286.2,7.03331246]
[1736702780565,0.21309,3286.4,3286.2,7.03331246]
[1736702781457,0.5011,3286.5,3286.2,7.03331246]
[1736702781664,0.2131,3286.3,3286.2,7.03331246]
[1736702782259,0.2131,3286.3,3286.2,5.41752313]
[1736702787971,0.2131,3286.3,3286.0,1.82284495]
[1736702787972,0.21311,3286.1,3286.0,1.82284495]
[1736702788177,3.42091,3286.1,3286.0,1.82284495]
[1736702791169,0.21311,3286.1,3286.0,1.82284495]
[1736702793180,0.74641,3286.1,3286.0,1.82284495]
[1736702812679,1.85829933,3286.1,3286.0,1.82284495]
[1736702816293,2.39379933,3286.1,3286.0,1.82284495]
[1736702823597,2.18068933,3286.1,3285.9,0.5041]
[1736702823795,0.21312,3286.0,3285.9,0.5041]
[1736702833406,2.22377866,3286.0,3285.5,3.2078]
[1736702833610,0.21316,3285.4,3285.3,0.9915]
[1736702833804,1.32504933,3285.4,3285.3,0.9915]
[1736702847519,1.11188933,3285.4,3285.0,3.2078]
[1736702847730,1.11188933,3285.4,3285.0,3.7284]
[1736702847918,0.21317,3285.2,3285.0,3.7284]
[1736702848436,1.32505933,3285.2,3285.1,0.5238]
[1736702849521,3.2078,3285.4,3285.1,1.63568933]
[1736702849718,0.21315,3285.5,3285.3,1.11188933]
[1736702850022,4.83788933,3285.8,3285.3,1.11188933]
[1736702850220,0.21315,3285.5,3285.4,0.5096]
[1736702851027,3.2078,3285.8,3285.5,0.21315]
[1736702851218,0.21312,3286.0,3285.7,1.11188933]
[1736702851419,0.21312,3286.0,3285.9,1.11188933]
[1736702853328,1.11188933,3286.1,3285.7,1.11188933]
[1736702853528,0.21313,3285.8,3285.7,1.11188933]
[1736702856533,0.21314,3285.7,3285.6,1.98765085]
[1736702857233,0.21314,3285.8,3285.6,1.98765085]
[1736702857433,0.21312,3285.9,3285.6,1.98765085]
[1736702857635,0.21314,3285.8,3285.6,1.98765085]
[1736702857833,0.72794,3285.8,3285.6,1.98765085]
[1736702860833,0.21314,3285.7,3285.6,1.98765085]
[1736702861433,0.5148,3285.8,3285.6,1.98765085]
[1736702861625,0.21314,3285.7,3285.6,1.98765085]
[1736702862430,0.21313,3285.8,3285.6,1.98765085]
[1736702863236,0.21314,3285.7,3285.6,1.98765085]
[1736702864941,3.7224,3286.1,3285.7,0.21314]
[1736702865238,0.21312,3286.0,3285.9,1.00155085]
[1736702865839,3.93551,3286.1,3285.9,1.00155085]
[1736702866639,0.72771,3286.1,3285.9,1.00155085]
[1736702866937,0.21312,3286.0,3285.9,1.00155085]
[1736702867735,0.21312,3285.9,3285.8,0.5233]
[1736702869341,0.2131,3286.3,3286.0,0.21312]
[1736702869533,0.21309,3286.4,3286.2,1.00155085]
[1736702869728,0.21309,3286.4,3286.3,0.497]
[1736702880539,0.21309,3286.4,3286.3,2.31984495]
[1736702898040,3.2078,3286.6,3286.3,0.497]
[1736702898242,3.2078,3286.6,3286.4,1.00155085]
[1736702900241,3.42088,3286.6,3286.4,1.00155085]
[1736702901041,0.21309,3286.5,3286.4,1.00155085]
[1736702901351,3.42088,3286.6,3286.4,1.00155085]
[1736702901550,3.42088,3286.6,3286.5,1.82284495]
[1736702901950,0.21308,3286.6,3286.5,1.82284495]
[1736702903848,1.21463085,3286.6,3286.5,1.82284495]
[1736702904950,1.21431797,3286.6,3286.5,1.82284495]
[1736702910451,1.21436116,3286.6,3286.5,1.82284495]
[1736702913452,0.21309,3286.4,3286.3,1.00128116]
[1736702919348,0.21309,3286.4,3286.3,2.82412611]
[1736702925455,0.21309,3286.4,3286.3,1.00128116]
[1736702928663,0.21309,3286.5,3286.3,1.00128116]
[1736702929062,5.91138116,3286.8,3286.3,1.00128116]
[1736702929264,0.21309,3286.5,3286.3,1.00128116]
[1736702931463,0.21309,3286.4,3286.3,2.82412611]
[1736702931663,0.21309,3286.5,3286.3,2.82412611]
[1736702936164,0.21309,3286.5,3286.3,1.82284495]
[1736702937569,0.21307,3286.7,3286.3,1.82284495]
[1736702937869,0.21309,3286.5,3286.3,1.82284495]
[1736702938371,0.5091,3286.4,3286.3,1.82284495]
[1736702941767,0.72219,3286.4,3286.3,1.82284495]
[1736702942166,0.5091,3286.4,3286.3,1.82284495]
[1736702943568,0.72219,3286.4,3286.3,1.82284495]
[1736702943770,0.5091,3286.4,3286.3,1.82284495]
[1736702944277,0.72219,3286.4,3286.3,1.82284495]
[1736702944471,0.5091,3286.4,3286.3,1.82284495]
[1736702946470,0.72219,3286.4,3286.3,1.82284495]
[1736702947778,0.5091,3286.4,3286.3,1.82284495]
[1736702951185,3.42089,3286.5,3286.3,1.82284495]
[1736702951384,3.42089,3286.5,3286.4,1.00117855]
[1736702951586,3.2078,3286.5,3286.4,1.00117855]
[1736702951989,0.21308,3286.6,3286.4,1.00117855]
[1736702953594,0.21308,3286.6,3286.5,0.5381]
[1736702956190,0.21309,3286.5,3286.3,1.82284495]
[1736702956395,1.24979,3286.5,3286.3,1.82284495]
[1736702956594,0.541,3286.4,3286.3,1.82284495]
[1736702962105,0.75409,3286.4,3286.3,1.82284495]
[1736702963104,1.75526855,3286.4,3286.3,1.82284495]
[1736702964595,1.54217855,3286.4,3285.6,2.04417855]
[1736702964794,1.21429855,3286.0,3285.6,1.25614]
[1736702965004,0.5042,3285.9,3285.6,2.25731855]
[1736702965200,0.5042,3285.9,3285.7,0.49]
[1736702966606,0.5042,3285.9,3285.7,0.70314]
[1736702967704,0.71733,3285.9,3285.7,1.49117855]
[1736702967906,0.71733,3285.9,3285.7,1.70431855]
[1736702967907,0.5042,3285.9,3285.7,1.70431855]
[1736702968404,0.5042,3285.9,3285.7,1.49117855]
[1736702969003,0.5042,3285.9,3285.7,1.70431855]
[1736702969205,0.5042,3285.9,3285.7,1.49117855]
[1736702969909,0.71733,3285.9,3285.7,1.49117855]
[1736702970113,0.5042,3285.9,3285.7,1.49117855]
[1736702970408,0.5042,3285.9,3285.7,1.70431855]
[1736702970603,0.5042,3285.9,3285.7,1.49117855]
[1736702971209,0.71732,3285.9,3285.7,1.49117855]
[1736702971506,0.5042,3285.9,3285.7,1.70431855]
[1736702971810,0.5042,3285.9,3285.7,1.49117855]
[1736702972906,0.5042,3285.9,3285.7,1.70431855]
[1736702974201,0.5042,3285.9,3285.7,0.70314]
[1736702976309,0.5042,3285.9,3285.7,2.52598495]
[1736702978911,0.71733,3285.9,3285.7,2.31284495]
[1736702979215,0.5042,3285.9,3285.7,2.52598495]
[1736702980211,0.71733,3285.9,3285.7,2.52598495]
[1736702980417,0.5042,3285.9,3285.7,2.52598495]
[1736702982314,0.5042,3285.9,3285.7,0.70314]
[1736702985013,0.5042,3285.9,3285.8,0.21313]
[1736702986119,0.5042,3285.9,3285.7,0.49]
[1736702986721,0.5042,3285.9,3285.8,0.21313]
[1736702987623,0.5042,3285.9,3285.7,0.49]
[1736702988017,0.5042,3285.9,3285.8,0.21313]
[1736702988218,0.5042,3285.9,3285.7,0.70314]
[1736702988420,0.5042,3285.9,3285.8,0.21313]
[1736702988819,0.5042,3285.9,3285.7,2.31284495]
[1736702989020,0.5042,3285.9,3285.8,0.21313]
[1736702991220,0.5042,3285.9,3285.7,2.52597495]
[1736702991421,0.5042,3285.9,3285.8,0.21313]
[1736702991720,0.5042,3285.9,3285.7,2.31284495]
[1736702992419,1.50577384,3285.9,3285.7,2.31284495]
[1736702992925,1.50577384,3285.9,3285.8,0.21313]
[1736702995523,1.50578031,3285.9,3285.8,0.21313]
[1736702996515,1.50578031,3285.9,3285.7,2.31284495]
[1736702997926,1.50578031,3285.9,3285.8,0.21313]
[1736702998826,0.5042,3285.9,3285.8,0.21313]
[1736703004435,0.21309,3286.5,3285.8,1.00158031]
[1736703004729,0.5249,3286.3,3286.1,1.00158031]
[1736703005130,0.5249,3286.3,3286.2,0.2131]
[1736703006431,0.5249,3286.3,3286.2,1.82284495]
[1736703006833,1.7635,3286.3,3286.2,1.82284495]
[1736703008327,2.9575,3286.3,3286.2,1.82284495]
[1736703009632,0.21314,3285.7,3285.4,0.522]
[1736703009839,1.00158031,3285.5,3285.2,0.21317]
[1736703010039,1.00158031,3285.5,3285.2,0.522]
[1736703010226,1.00158031,3285.3,3285.1,0.495]
[1736703010429,0.21317,3285.2,3285.0,3.76266343]
[1736703010631,1.21476031,3285.1,3285.0,3.76266343]